Workbook

Sheet Sheet1
B1: Kinross Road Runners 2017 Club Championship
E2: Alloa Half | F2: Alloa Half | G2: Tay Ten | H2: Tay Ten | I2: Kinross PTA 10k | J2: Perth Parkrun | K2: Perth Parkrun | L2: Glenrothes 10k | M2: BrigBash 5m | N2: BrigBash 5m | O2: Kn'khill 3.9M | P2: Kn'hill 3.9M | Q2: Barry Buddon Half | R2: Barry Buddon Half | S2: Perthshire Half Marathon | T2: Perthshire Half Marathon | U2: East Neuk 10k | V2: Kirkcaldy Parkrun | W2: Kirkcaldy Parkrun | X2: Templeton Ten | Y2: Templeton Ten | Z2: Number of Races | AA2: Average Time | AB2: No. Races for ranking | AC2: Best 5 Average Time
E3: Actual | F3: 10k Equiv | G3: Actual | H3: 10k Equiv | I3: 10k Equiv | J3: Actual | K3: 10k Equiv | L3: 10k Equiv | M3: Actual | N3: 10k Equiv | O3: Actual | P3: 10k Equiv | Q3: Actual | R3: 10k Equiv | S3: Actual | T3: 10k Equiv | U3: 10k Equiv | V3: Actual | W3: 10k Equiv | X3: Actual | Y3: 10k Equiv
B4: Surname | C4: First | E4: hh:mm:ss | F4: hh:mm:ss | G4: hh:mm:ss | H4: hh:mm:ss | I4: hh:mm:ss | J4: hh:mm:ss | K4: hh:mm:ss | L4: hh:mm:ss | M4: hh:mm:ss | N4: hh:mm:ss | O4: hh:mm:ss | P4: hh:mm:ss | Q4: hh:mm:ss | R4: hh:mm:ss | S4: hh:mm:ss | T4: hh:mm:ss | U4: hh:mm:ss | V4: hh:mm:ss | W4: hh:mm:ss | X4: hh:mm:ss | Y4: hh:mm:ss | AA4: hh:mm:ss | AC4: hh:mm:ss
B5: Test | C5: Test | E5: 1.157407407e-05 | F5: =(E5*86400)*POWER((6.2138818/13.1094),1.07)/86400 -> 5.206801754e-06 | G5: 1.157407407e-05 | H5: =(G5*86400)*POWER((6.2138818/10),1.07)/86400 -> 6.956401732e-06 | I5: 1.157407407e-05 | J5: 1.157407407e-05 | K5: =(J5*86400)*POWER((10/5),1.07)/86400 -> 2.429899731e-05 | L5: 1.157407407e-05 | M5: 1.157407407e-05 | N5: =(M5*86400)*POWER((6.2138818/5),1.07)/86400 -> 1.460450191e-05 | O5: 1.157407407e-05 | P5: =(O5*86400)*POWER((6.2138818/3.9),1.07)/86400 -> 1.905221725e-05 | Q5: 0.01388888889 | R5: =(Q5*86400)*POWER((6.2138818/13.1094),1.07)/86400 -> 0.006248162104 | S5: 1.157407407e-05 | T5: =(S5*86400)*POWER((6.2138818/13.1094),1.07)/86400 -> 5.206801754e-06 | U5: 1.157407407e-05 | V5: 1.157407407e-05 | W5: =(V5*86400)*POWER((10/5),1.07)/86400 -> 2.429899731e-05 | X5: 1.157407407e-05 | Y5: =(X5*86400)*POWER((6.2138818/10),1.07)/86400 -> 6.956401732e-06 | Z5: =COUNT(F5,H5,I5,K5:L5,N5,P5,R5,T5:U5,W5,Y5) -> 12 | AA5: =IFERROR(AVERAGE(F5,H5,I5,K5:L5,N5,P5,R5,T5:U5,W5,Y5),"No race run") -> 0.0005324554539 | AB5: =IF(COUNT(F5,H5,I5,K5:L5,N5,P5,R5,T5:U5,W5)>5,5,COUNT(F5,H5,I5,K5:L5,N5,P5,R5,T5:U5,W5)) -> 5 | AC5: =IFERROR(IF(Z5>5,AVERAGE(SMALL((F5,H5,I5,K5:L5,N5,P5,R5,T5:U5,W5),{1,2,3,4,5})),AA5),"No race run") -> 8.103630677e-06
B6: Scott | C6: David | D6: M | G6: 0.04337962963 | H6: =(G6*86400)*POWER((6.2138818/10),1.07)/86400 -> 0.02607259369 | I6: 0.02641203704 | J6: 0.01239583333 | K6: =(J6*86400)*POWER((10/5),1.07)/86400 -> 0.02602422611 | M6: 0.02025462963 | N6: =(M6*86400)*POWER((6.2138818/5),1.07)/86400 -> 0.02555787835 | Z6: =COUNT(F6,H6,I6,K6:L6,N6,P6,R6,T6:U6,W6) -> 4 | AA6: =IFERROR(AVERAGE(F6,H6,I6,K6:L6,N6,P6,R6,T6:U6,W6),"No race run") -> 0.0260166838 | AB6: =IF(COUNT(F6,H6,I6,K6:L6,N6,P6,R6,T6:U6,W6)>5,5,COUNT(F6,H6,I6,K6:L6,N6,P6,R6,T6:U6,W6)) -> 4 | AC6: =IFERROR(IF(Z6>5,AVERAGE(SMALL((F6,H6,I6,K6:L6,N6,P6,R6,T6:U6,W6),{1,2,3,4,5})),AA6),"No race run") -> 0.0260166838
B7: Kemp | C7: Allan | D7: M | I7: 0.02685185185 | J7: 0.01237268519 | K7: =(J7*86400)*POWER((10/5),1.07)/86400 -> 0.02597562812 | L7: 0.02612268519 | Z7: =COUNT(F7,H7,I7,K7:L7,N7,P7,R7,T7:U7,W7) -> 3 | AA7: =IFERROR(AVERAGE(F7,H7,I7,K7:L7,N7,P7,R7,T7:U7,W7),"No race run") -> 0.02631672172 | AB7: 3 | AC7: =IFERROR(IF(Z7>5,AVERAGE(SMALL((F7,H7,I7,K7:L7,N7,P7,R7,T7:U7,W7),{1,2,3,4,5})),AA7),"No race run") -> 0.02631672172
B8: Strachan | C8: Scott | D8: M | E8: 0.05820601852 | F8: =(E8*86400)*POWER((6.2138818/13.1094),1.07)/86400 -> 0.02618500602 | G8: 0.04681712963 | H8: =(G8*86400)*POWER((6.2138818/10),1.07)/86400 -> 0.02813864501 | J8: 0.01251157407 | K8: =(J8*86400)*POWER((10/5),1.07)/86400 -> 0.02626721609 | L8: 0.02678240741 | Z8: =COUNT(F8,H8,I8,K8:L8,N8,P8,R8,T8:U8,W8) -> 4 | AA8: =IFERROR(AVERAGE(F8,H8,I8,K8:L8,N8,P8,R8,T8:U8,W8),"No race run") -> 0.02684331863 | AB8: 4 | AC8: =IFERROR(IF(Z8>5,AVERAGE(SMALL((F8,H8,I8,K8:L8,N8,P8,R8,T8:U8,W8),{1,2,3,4,5})),AA8),"No race run") -> 0.02684331863
B9: Johns | C9: Andy | D9: M | E9: 0.06094907407 | F9: =(E9*86400)*POWER((6.2138818/13.1094),1.07)/86400 -> 0.02741901803 | G9: 0.0466087963 | H9: =(G9*86400)*POWER((6.2138818/10),1.07)/86400 -> 0.02801342978 | M9: 0.02189814815 | N9: =(M9*86400)*POWER((6.2138818/5),1.07)/86400 -> 0.02763171762 | Z9: =COUNT(F9,H9,I9,K9:L9,N9,P9,R9,T9:U9,W9) -> 3 | AA9: =IFERROR(AVERAGE(F9,H9,I9,K9:L9,N9,P9,R9,T9:U9,W9),"No race run") -> 0.02768805514 | AB9: 3 | AC9: =IFERROR(IF(Z9>5,AVERAGE(SMALL((F9,H9,I9,K9:L9,N9,P9,R9,T9:U9,W9),{1,2,3,4,5})),AA9),"No race run") -> 0.02768805514
B10: Newton | C10: Matt | D10: M | I10: 0.02822916667 | J10: 0.01320601852 | K10: =(J10*86400)*POWER((10/5),1.07)/86400 -> 0.02772515593 | L10: 0.0284375 | M10: 0.02143518519 | N10: =(M10*86400)*POWER((6.2138818/5),1.07)/86400 -> 0.02704753754 | Z10: =COUNT(F10,H10,I10,K10:L10,N10,P10,R10,T10:U10,W10) -> 4 | AA10: =IFERROR(AVERAGE(F10,H10,I10,K10:L10,N10,P10,R10,T10:U10,W10),"No race run") -> 0.02785984003 | AB10: 4 | AC10: =IFERROR(IF(Z10>5,AVERAGE(SMALL((F10,H10,I10,K10:L10,N10,P10,R10,T10:U10,W10),{1,2,3,4,5})),AA10),"No race run") -> 0.02785984003
B11: Webster | C11: Billy | D11: M | E11: 0.06324074074 | F11: =(E11*86400)*POWER((6.2138818/13.1094),1.07)/86400 -> 0.02844996478 | G11: 0.04731481481 | H11: =(G11*86400)*POWER((6.2138818/10),1.07)/86400 -> 0.02843777028 | J11: 0.01344907407 | K11: =(J11*86400)*POWER((10/5),1.07)/86400 -> 0.02823543487 | L11: 0.02900462963 | M11: 0.02256944444 | N11: =(M11*86400)*POWER((6.2138818/5),1.07)/86400 -> 0.02847877873 | Z11: =COUNT(F11,H11,I11,K11:L11,N11,P11,R11,T11:U11,W11) -> 5 | AA11: =IFERROR(AVERAGE(F11,H11,I11,K11:L11,N11,P11,R11,T11:U11,W11),"No race run") -> 0.02852131566 | AB11: 5 | AC11: =IFERROR(IF(Z11>5,AVERAGE(SMALL((F11,H11,I11,K11:L11,N11,P11,R11,T11:U11,W11),{1,2,3,4,5})),AA11),"No race run") -> 0.02852131566
B12: Beveridge | C12: John | D12: M | E12: 0.06295138889 | F12: =(E12*86400)*POWER((6.2138818/13.1094),1.07)/86400 -> 0.02831979474 | J12: 0.01400462963 | K12: =(J12*86400)*POWER((10/5),1.07)/86400 -> 0.02940178674 | L12: 0.02828703704 | M12: 0.02225694444 | N12: =(M12*86400)*POWER((6.2138818/5),1.07)/86400 -> 0.02808445718 | Z12: =COUNT(F12,H12,I12,K12:L12,N12,P12,R12,T12:U12,W12) -> 4 | AA12: =IFERROR(AVERAGE(F12,H12,I12,K12:L12,N12,P12,R12,T12:U12,W12),"No race run") -> 0.02852326892 | AB12: 4 | AC12: =IFERROR(IF(Z12>5,AVERAGE(SMALL((F12,H12,I12,K12:L12,N12,P12,R12,T12:U12,W12),{1,2,3,4,5})),AA12),"No race run") -> 0.02852326892
B13: Jones | C13: Tim | D13: M | J13: 0.01385416667 | K13: =(J13*86400)*POWER((10/5),1.07)/86400 -> 0.02908589978 | L13: 0.0287962963 | M13: 0.02252314815 | N13: =(M13*86400)*POWER((6.2138818/5),1.07)/86400 -> 0.02842036072 | Z13: =COUNT(F13,H13,I13,K13:L13,N13,P13,R13,T13:U13,W13) -> 3 | AA13: =IFERROR(AVERAGE(F13,H13,I13,K13:L13,N13,P13,R13,T13:U13,W13),"No race run") -> 0.02876751893 | AB13: 3 | AC13: =IFERROR(IF(Z13>5,AVERAGE(SMALL((F13,H13,I13,K13:L13,N13,P13,R13,T13:U13,W13),{1,2,3,4,5})),AA13),"No race run") -> 0.02876751893
B14: Kemp | C14: Graham | D14: M | I14: 0.02949074074 | J14: 0.01369212963 | K14: =(J14*86400)*POWER((10/5),1.07)/86400 -> 0.02874571381 | L14: 0.02991898148 | M14: 0.02251157407 | N14: =(M14*86400)*POWER((6.2138818/5),1.07)/86400 -> 0.02840575622 | Z14: =COUNT(F14,H14,I14,K14:L14,N14,P14,R14,T14:U14,W14) -> 4 | AA14: =IFERROR(AVERAGE(F14,H14,I14,K14:L14,N14,P14,R14,T14:U14,W14),"No race run") -> 0.02914029806 | AB14: 4 | AC14: =IFERROR(IF(Z14>5,AVERAGE(SMALL((F14,H14,I14,K14:L14,N14,P14,R14,T14:U14,W14),{1,2,3,4,5})),AA14),"No race run") -> 0.02914029806
B15: Hill | C15: Martin | D15: M | G15: 0.05013888889 | H15: =(G15*86400)*POWER((6.2138818/10),1.07)/86400 -> 0.0301351323 | I15: 0.02913194444 | J15: 0.01363425926 | K15: =(J15*86400)*POWER((10/5),1.07)/86400 -> 0.02862421883 | M15: 0.02282407407 | N15: =(M15*86400)*POWER((6.2138818/5),1.07)/86400 -> 0.02880007777 | Z15: =COUNT(F15,H15,I15,K15:L15,N15,P15,R15,T15:U15,W15) -> 4 | AA15: =IFERROR(AVERAGE(F15,H15,I15,K15:L15,N15,P15,R15,T15:U15,W15),"No race run") -> 0.02917284334 | AB15: 4 | AC15: =IFERROR(IF(Z15>5,AVERAGE(SMALL((F15,H15,I15,K15:L15,N15,P15,R15,T15:U15,W15),{1,2,3,4,5})),AA15),"No race run") -> 0.02917284334
B16: Grant | C16: Ian | D16: M | E16: 0.0655787037 | F16: =(E16*86400)*POWER((6.2138818/13.1094),1.07)/86400 -> 0.02950173874 | Z16: =COUNT(F16,H16,I16,K16:L16,N16,P16,R16,T16:U16,W16) -> 1 | AA16: =IFERROR(AVERAGE(F16,H16,I16,K16:L16,N16,P16,R16,T16:U16,W16),"No race run") -> 0.02950173874 | AB16: 1 | AC16: =IFERROR(IF(Z16>5,AVERAGE(SMALL((F16,H16,I16,K16:L16,N16,P16,R16,T16:U16,W16),{1,2,3,4,5})),AA16),"No race run") -> 0.02950173874
B17: Freck | C17: Sandy | D17: M | G17: 0.05074074074 | H17: =(G17*86400)*POWER((6.2138818/10),1.07)/86400 -> 0.03049686519 | I17: 0.02960648148 | M17: 0.02305555556 | N17: =(M17*86400)*POWER((6.2138818/5),1.07)/86400 -> 0.02909216781 | Z17: =COUNT(F17,H17,I17,K17:L17,N17,P17,R17,T17:U17,W17) -> 3 | AA17: =IFERROR(AVERAGE(F17,H17,I17,K17:L17,N17,P17,R17,T17:U17,W17),"No race run") -> 0.02973183816 | AB17: 3 | AC17: =IFERROR(IF(Z17>5,AVERAGE(SMALL((F17,H17,I17,K17:L17,N17,P17,R17,T17:U17,W17),{1,2,3,4,5})),AA17),"No race run") -> 0.02973183816
B18: Jarron | C18: Chester | D18: M | I18: 0.02983796296 | Z18: =COUNT(F18,H18,I18,K18:L18,N18,P18,R18,T18:U18,W18) -> 1 | AA18: =IFERROR(AVERAGE(F18,H18,I18,K18:L18,N18,P18,R18,T18:U18,W18),"No race run") -> 0.02983796296 | AB18: 1 | AC18: =IFERROR(IF(Z18>5,AVERAGE(SMALL((F18,H18,I18,K18:L18,N18,P18,R18,T18:U18,W18),{1,2,3,4,5})),AA18),"No race run") -> 0.02983796296
B19: Allcoat | C19: Paul | D19: M | E19: 0.06563657407 | F19: =(E19*86400)*POWER((6.2138818/13.1094),1.07)/86400 -> 0.02952777274 | I19: 0.02921296296 | L19: 0.03114583333 | M19: 0.02342592593 | N19: =(M19*86400)*POWER((6.2138818/5),1.07)/86400 -> 0.02955951187 | Z19: =COUNT(F19,H19,I19,K19:L19,N19,P19,R19,T19:U19,W19) -> 4 | AA19: =IFERROR(AVERAGE(F19,H19,I19,K19:L19,N19,P19,R19,T19:U19,W19),"No race run") -> 0.02986152023 | AB19: 4 | AC19: =IFERROR(IF(Z19>5,AVERAGE(SMALL((F19,H19,I19,K19:L19,N19,P19,R19,T19:U19,W19),{1,2,3,4,5})),AA19),"No race run") -> 0.02986152023
B20: Hutt | C20: Sarah | D20: F | G20: 0.05078703704 | H20: =(G20*86400)*POWER((6.2138818/10),1.07)/86400 -> 0.0305246908 | M20: 0.0233912037 | N20: =(M20*86400)*POWER((6.2138818/5),1.07)/86400 -> 0.02951569836 | Z20: =COUNT(F20,H20,I20,K20:L20,N20,P20,R20,T20:U20,W20) -> 2 | AA20: =IFERROR(AVERAGE(F20,H20,I20,K20:L20,N20,P20,R20,T20:U20,W20),"No race run") -> 0.03002019458 | AB20: 2 | AC20: =IFERROR(IF(Z20>5,AVERAGE(SMALL((F20,H20,I20,K20:L20,N20,P20,R20,T20:U20,W20),{1,2,3,4,5})),AA20),"No race run") -> 0.03002019458
B21: Gordon | C21: Jillian | D21: F | E21: 0.06847222222 | F21: =(E21*86400)*POWER((6.2138818/13.1094),1.07)/86400 -> 0.03080343917 | G21: 0.05041666667 | H21: =(G21*86400)*POWER((6.2138818/10),1.07)/86400 -> 0.03030208594 | I21: 0.03005787037 | J21: 0.01422453704 | K21: =(J21*86400)*POWER((10/5),1.07)/86400 -> 0.02986346769 | L21: 0.02936342593 | Z21: =COUNT(F21,H21,I21,K21:L21,N21,P21,R21,T21:U21,W21) -> 5 | AA21: =IFERROR(AVERAGE(F21,H21,I21,K21:L21,N21,P21,R21,T21:U21,W21),"No race run") -> 0.03007805782 | AB21: 5 | AC21: =IFERROR(IF(Z21>5,AVERAGE(SMALL((F21,H21,I21,K21:L21,N21,P21,R21,T21:U21,W21),{1,2,3,4,5})),AA21),"No race run") -> 0.03007805782
B22: Gray | C22: Kirsty | D22: F | G22: 0.05253472222 | H22: =(G22*86400)*POWER((6.2138818/10),1.07)/86400 -> 0.03157510746 | J22: 0.01434027778 | K22: =(J22*86400)*POWER((10/5),1.07)/86400 -> 0.03010645766 | L22: 0.03105324074 | M22: 0.02469907407 | N22: =(M22*86400)*POWER((6.2138818/5),1.07)/86400 -> 0.03116600708 | Z22: =COUNT(F22,H22,I22,K22:L22,N22,P22,R22,T22:U22,W22) -> 4 | AA22: =IFERROR(AVERAGE(F22,H22,I22,K22:L22,N22,P22,R22,T22:U22,W22),"No race run") -> 0.03097520324 | AB22: 4 | AC22: =IFERROR(IF(Z22>5,AVERAGE(SMALL((F22,H22,I22,K22:L22,N22,P22,R22,T22:U22,W22),{1,2,3,4,5})),AA22),"No race run") -> 0.03097520324
B23: Dobson | C23: Judith | D23: F | G23: 0.05071759259 | H23: =(G23*86400)*POWER((6.2138818/10),1.07)/86400 -> 0.03048295239 | L23: 0.03146990741 | M23: 0.02487268519 | N23: =(M23*86400)*POWER((6.2138818/5),1.07)/86400 -> 0.03138507461 | Z23: =COUNT(F23,H23,I23,K23:L23,N23,P23,R23,T23:U23,W23) -> 3 | AA23: =IFERROR(AVERAGE(F23,H23,I23,K23:L23,N23,P23,R23,T23:U23,W23),"No race run") -> 0.0311126448 | AB23: 3 | AC23: =IFERROR(IF(Z23>5,AVERAGE(SMALL((F23,H23,I23,K23:L23,N23,P23,R23,T23:U23,W23),{1,2,3,4,5})),AA23),"No race run") -> 0.0311126448
B24: Nisbet | C24: Fiona | D24: F | E24: 0.0715625 | F24: =(E24*86400)*POWER((6.2138818/13.1094),1.07)/86400 -> 0.03219365524 | G24: 0.05145833333 | H24: =(G24*86400)*POWER((6.2138818/10),1.07)/86400 -> 0.0309281621 | J24: 0.01505787037 | K24: =(J24*86400)*POWER((10/5),1.07)/86400 -> 0.0316129955 | L24: 0.03293981481 | M24: 0.02359953704 | N24: =(M24*86400)*POWER((6.2138818/5),1.07)/86400 -> 0.0297785794 | Z24: =COUNT(F24,H24,I24,K24:L24,N24,P24,R24,T24:U24,W24) -> 5 | AA24: =IFERROR(AVERAGE(F24,H24,I24,K24:L24,N24,P24,R24,T24:U24,W24),"No race run") -> 0.03149064141 | AB24: 5 | AC24: =IFERROR(IF(Z24>5,AVERAGE(SMALL((F24,H24,I24,K24:L24,N24,P24,R24,T24:U24,W24),{1,2,3,4,5})),AA24),"No race run") -> 0.03149064141
B25: Dobson | C25: Ben | D25: M | E25: 0.07366898148 | F25: =(E25*86400)*POWER((6.2138818/13.1094),1.07)/86400 -> 0.03314129316 | G25: 0.05306712963 | H25: =(G25*86400)*POWER((6.2138818/10),1.07)/86400 -> 0.03189510194 | J25: 0.01469907407 | K25: =(J25*86400)*POWER((10/5),1.07)/86400 -> 0.03085972658 | Z25: =COUNT(F25,H25,I25,K25:L25,N25,P25,R25,T25:U25,W25) -> 3 | AA25: =IFERROR(AVERAGE(F25,H25,I25,K25:L25,N25,P25,R25,T25:U25,W25),"No race run") -> 0.03196537389 | AB25: 3 | AC25: =IFERROR(IF(Z25>5,AVERAGE(SMALL((F25,H25,I25,K25:L25,N25,P25,R25,T25:U25,W25),{1,2,3,4,5})),AA25),"No race run") -> 0.03196537389
B26: Kelly | C26: Graeme | D26: M | E26: 0.07123842593 | F26: =(E26*86400)*POWER((6.2138818/13.1094),1.07)/86400 -> 0.03204786479 | Z26: =COUNT(F26,H26,I26,K26:L26,N26,P26,R26,T26:U26,W26) -> 1 | AA26: =IFERROR(AVERAGE(F26,H26,I26,K26:L26,N26,P26,R26,T26:U26,W26),"No race run") -> 0.03204786479 | AB26: 1 | AC26: =IFERROR(IF(Z26>5,AVERAGE(SMALL((F26,H26,I26,K26:L26,N26,P26,R26,T26:U26,W26),{1,2,3,4,5})),AA26),"No race run") -> 0.03204786479
B27: Nisbet | C27: Stewart | D27: M | E27: 0.06512731481 | F27: =(E27*86400)*POWER((6.2138818/13.1094),1.07)/86400 -> 0.02929867347 | G27: 0.04837962963 | H27: =(G27*86400)*POWER((6.2138818/10),1.07)/86400 -> 0.02907775924 | J27: 0.01836805556 | K27: =(J27*86400)*POWER((10/5),1.07)/86400 -> 0.03856250872 | L27: 0.03266203704 | M27: 0.02484953704 | N27: =(M27*86400)*POWER((6.2138818/5),1.07)/86400 -> 0.03135586561 | Z27: =COUNT(F27,H27,I27,K27:L27,N27,P27,R27,T27:U27,W27) -> 5 | AA27: =IFERROR(AVERAGE(F27,H27,I27,K27:L27,N27,P27,R27,T27:U27,W27),"No race run") -> 0.03219136881 | AB27: 5 | AC27: =IFERROR(IF(Z27>5,AVERAGE(SMALL((F27,H27,I27,K27:L27,N27,P27,R27,T27:U27,W27),{1,2,3,4,5})),AA27),"No race run") -> 0.03219136881
B28: Edgerton | C28: Peter | D28: M | L28: 0.03258101852 | M28: 0.0252662037 | N28: =(M28*86400)*POWER((6.2138818/5),1.07)/86400 -> 0.03188162767 | Z28: =COUNT(F28,H28,I28,K28:L28,N28,P28,R28,T28:U28,W28) -> 2 | AA28: =IFERROR(AVERAGE(F28,H28,I28,K28:L28,N28,P28,R28,T28:U28,W28),"No race run") -> 0.0322313231 | AB28: 2 | AC28: =IFERROR(IF(Z28>5,AVERAGE(SMALL((F28,H28,I28,K28:L28,N28,P28,R28,T28:U28,W28),{1,2,3,4,5})),AA28),"No race run") -> 0.0322313231
B29: Blair | C29: Steven | D29: M | J29: 0.01548611111 | K29: =(J29*86400)*POWER((10/5),1.07)/86400 -> 0.0325120584 | L29: 0.03417824074 | M29: 0.02414351852 | N29: =(M29*86400)*POWER((6.2138818/5),1.07)/86400 -> 0.03046499099 | Z29: =COUNT(F29,H29,I29,K29:L29,N29,P29,R29,T29:U29,W29) -> 3 | AA29: =IFERROR(AVERAGE(F29,H29,I29,K29:L29,N29,P29,R29,T29:U29,W29),"No race run") -> 0.03238509671 | AB29: 3 | AC29: =IFERROR(IF(Z29>5,AVERAGE(SMALL((F29,H29,I29,K29:L29,N29,P29,R29,T29:U29,W29),{1,2,3,4,5})),AA29),"No race run") -> 0.03238509671
B30: Coutts | C30: Pippa | D30: F | I30: 0.03358796296 | Z30: =COUNT(F30,H30,I30,K30:L30,N30,P30,R30,T30:U30,W30) -> 1 | AA30: =IFERROR(AVERAGE(F30,H30,I30,K30:L30,N30,P30,R30,T30:U30,W30),"No race run") -> 0.03358796296 | AB30: 1 | AC30: =IFERROR(IF(Z30>5,AVERAGE(SMALL((F30,H30,I30,K30:L30,N30,P30,R30,T30:U30,W30),{1,2,3,4,5})),AA30),"No race run") -> 0.03358796296
B31: Reilly | C31: Jim | D31: M | J31: 0.01581018519 | K31: =(J31*86400)*POWER((10/5),1.07)/86400 -> 0.03319243032 | L31: 0.03530092593 | M31: 0.02560185185 | N31: =(M31*86400)*POWER((6.2138818/5),1.07)/86400 -> 0.03230515823 | Z31: =COUNT(F31,H31,I31,K31:L31,N31,P31,R31,T31:U31,W31) -> 3 | AA31: =IFERROR(AVERAGE(F31,H31,I31,K31:L31,N31,P31,R31,T31:U31,W31),"No race run") -> 0.03359950483 | AB31: 3 | AC31: =IFERROR(IF(Z31>5,AVERAGE(SMALL((F31,H31,I31,K31:L31,N31,P31,R31,T31:U31,W31),{1,2,3,4,5})),AA31),"No race run") -> 0.03359950483
B32: Pool | C32: Richard | D32: M | I32: 0.03363425926 | Z32: =COUNT(F32,H32,I32,K32:L32,N32,P32,R32,T32:U32,W32) -> 1 | AA32: =IFERROR(AVERAGE(F32,H32,I32,K32:L32,N32,P32,R32,T32:U32,W32),"No race run") -> 0.03363425926 | AB32: 1 | AC32: =IFERROR(IF(Z32>5,AVERAGE(SMALL((F32,H32,I32,K32:L32,N32,P32,R32,T32:U32,W32),{1,2,3,4,5})),AA32),"No race run") -> 0.03363425926
B33: Reith | C33: Kevin | D33: M | E33: 0.07496527778 | F33: =(E33*86400)*POWER((6.2138818/13.1094),1.07)/86400 -> 0.03372445496 | Z33: =COUNT(F33,H33,I33,K33:L33,N33,P33,R33,T33:U33,W33) -> 1 | AA33: =IFERROR(AVERAGE(F33,H33,I33,K33:L33,N33,P33,R33,T33:U33,W33),"No race run") -> 0.03372445496 | AB33: 1 | AC33: =IFERROR(IF(Z33>5,AVERAGE(SMALL((F33,H33,I33,K33:L33,N33,P33,R33,T33:U33,W33),{1,2,3,4,5})),AA33),"No race run") -> 0.03372445496
B34: Muncey | C34: Laura | D34: F | E34: 0.07695601852 | F34: =(E34*86400)*POWER((6.2138818/13.1094),1.07)/86400 -> 0.03462002486 | G34: 0.05612268519 | H34: =(G34*86400)*POWER((6.2138818/10),1.07)/86400 -> 0.033731592 | M34: 0.02623842593 | N34: =(M34*86400)*POWER((6.2138818/5),1.07)/86400 -> 0.03310840584 | Z34: =COUNT(F34,H34,I34,K34:L34,N34,P34,R34,T34:U34,W34) -> 3 | AA34: =IFERROR(AVERAGE(F34,H34,I34,K34:L34,N34,P34,R34,T34:U34,W34),"No race run") -> 0.03382000756 | AB34: 3 | AC34: =IFERROR(IF(Z34>5,AVERAGE(SMALL((F34,H34,I34,K34:L34,N34,P34,R34,T34:U34,W34),{1,2,3,4,5})),AA34),"No race run") -> 0.03382000756
B35: McBride | C35: Katy | D35: F | E35: 0.07819444444 | F35: =(E35*86400)*POWER((6.2138818/13.1094),1.07)/86400 -> 0.03517715265 | I35: 0.03353009259 | J35: 0.01605324074 | K35: =(J35*86400)*POWER((10/5),1.07)/86400 -> 0.03370270926 | Z35: =COUNT(F35,H35,I35,K35:L35,N35,P35,R35,T35:U35,W35) -> 3 | AA35: =IFERROR(AVERAGE(F35,H35,I35,K35:L35,N35,P35,R35,T35:U35,W35),"No race run") -> 0.0341366515 | AB35: 3 | AC35: =IFERROR(IF(Z35>5,AVERAGE(SMALL((F35,H35,I35,K35:L35,N35,P35,R35,T35:U35,W35),{1,2,3,4,5})),AA35),"No race run") -> 0.0341366515
B36: Baughan | C36: Paul | D36: M | I36: 0.03456018519 | Z36: =COUNT(F36,H36,I36,K36:L36,N36,P36,R36,T36:U36,W36) -> 1 | AA36: =IFERROR(AVERAGE(F36,H36,I36,K36:L36,N36,P36,R36,T36:U36,W36),"No race run") -> 0.03456018519 | AB36: 1 | AC36: =IFERROR(IF(Z36>5,AVERAGE(SMALL((F36,H36,I36,K36:L36,N36,P36,R36,T36:U36,W36),{1,2,3,4,5})),AA36),"No race run") -> 0.03456018519
B37: Dobson | C37: Stuart | D37: M | G37: 0.05784722222 | H37: =(G37*86400)*POWER((6.2138818/10),1.07)/86400 -> 0.03476809586 | L37: 0.03524305556 | M37: 0.02767361111 | N37: =(M37*86400)*POWER((6.2138818/5),1.07)/86400 -> 0.03491936407 | Z37: =COUNT(F37,H37,I37,K37:L37,N37,P37,R37,T37:U37,W37) -> 3 | AA37: =IFERROR(AVERAGE(F37,H37,I37,K37:L37,N37,P37,R37,T37:U37,W37),"No race run") -> 0.03497683849 | AB37: 3 | AC37: =IFERROR(IF(Z37>5,AVERAGE(SMALL((F37,H37,I37,K37:L37,N37,P37,R37,T37:U37,W37),{1,2,3,4,5})),AA37),"No race run") -> 0.03497683849
B38: Wilson | C38: Anne | D38: F | I38: 0.0352662037 | Z38: =COUNT(F38,H38,I38,K38:L38,N38,P38,R38,T38:U38,W38) -> 1 | AA38: =IFERROR(AVERAGE(F38,H38,I38,K38:L38,N38,P38,R38,T38:U38,W38),"No race run") -> 0.0352662037 | AB38: 1 | AC38: =IFERROR(IF(Z38>5,AVERAGE(SMALL((F38,H38,I38,K38:L38,N38,P38,R38,T38:U38,W38),{1,2,3,4,5})),AA38),"No race run") -> 0.0352662037
B39: Gray | C39: Duncan | D39: M | G39: 0.06162037037 | H39: =(G39*86400)*POWER((6.2138818/10),1.07)/86400 -> 0.03703588282 | I39: 0.03510416667 | J39: 0.016875 | K39: =(J39*86400)*POWER((10/5),1.07)/86400 -> 0.03542793807 | L39: 0.03520833333 | Z39: =COUNT(F39,H39,I39,K39:L39,N39,P39,R39,T39:U39,W39) -> 4 | AA39: =IFERROR(AVERAGE(F39,H39,I39,K39:L39,N39,P39,R39,T39:U39,W39),"No race run") -> 0.03569408022 | AB39: 4 | AC39: =IFERROR(IF(Z39>5,AVERAGE(SMALL((F39,H39,I39,K39:L39,N39,P39,R39,T39:U39,W39),{1,2,3,4,5})),AA39),"No race run") -> 0.03569408022
B40: Bilton | C40: Geoff | D40: M | I40: 0.03600694444 | J40: 0.01690972222 | K40: =(J40*86400)*POWER((10/5),1.07)/86400 -> 0.03550083506 | Z40: =COUNT(F40,H40,I40,K40:L40,N40,P40,R40,T40:U40,W40) -> 2 | AA40: =IFERROR(AVERAGE(F40,H40,I40,K40:L40,N40,P40,R40,T40:U40,W40),"No race run") -> 0.03575388975 | AB40: 2 | AC40: =IFERROR(IF(Z40>5,AVERAGE(SMALL((F40,H40,I40,K40:L40,N40,P40,R40,T40:U40,W40),{1,2,3,4,5})),AA40),"No race run") -> 0.03575388975
B41: Hunter | C41: Neil | D41: M | I41: 0.03633101852 | M41: 0.02853009259 | N41: =(M41*86400)*POWER((6.2138818/5),1.07)/86400 -> 0.03600009721 | Z41: =COUNT(F41,H41,I41,K41:L41,N41,P41,R41,T41:U41,W41) -> 2 | AA41: =IFERROR(AVERAGE(F41,H41,I41,K41:L41,N41,P41,R41,T41:U41,W41),"No race run") -> 0.03616555787 | AB41: 2 | AC41: =IFERROR(IF(Z41>5,AVERAGE(SMALL((F41,H41,I41,K41:L41,N41,P41,R41,T41:U41,W41),{1,2,3,4,5})),AA41),"No race run") -> 0.03616555787
B42: Rose | C42: Julie | D42: F | E42: 0.08039351852 | F42: =(E42*86400)*POWER((6.2138818/13.1094),1.07)/86400 -> 0.03616644498 | Z42: =COUNT(F42,H42,I42,K42:L42,N42,P42,R42,T42:U42,W42) -> 1 | AA42: =IFERROR(AVERAGE(F42,H42,I42,K42:L42,N42,P42,R42,T42:U42,W42),"No race run") -> 0.03616644498 | AB42: 1 | AC42: =IFERROR(IF(Z42>5,AVERAGE(SMALL((F42,H42,I42,K42:L42,N42,P42,R42,T42:U42,W42),{1,2,3,4,5})),AA42),"No race run") -> 0.03616644498
B43: Findlay | C43: Valerie | D43: F | G43: 0.061875 | H43: =(G43*86400)*POWER((6.2138818/10),1.07)/86400 -> 0.03718892366 | I43: 0.03591435185 | J43: 0.01726851852 | K43: =(J43*86400)*POWER((10/5),1.07)/86400 -> 0.03625410398 | M43: 0.0281712963 | N43: =(M43*86400)*POWER((6.2138818/5),1.07)/86400 -> 0.03554735765 | Z43: =COUNT(F43,H43,I43,K43:L43,N43,P43,R43,T43:U43,W43) -> 4 | AA43: =IFERROR(AVERAGE(F43,H43,I43,K43:L43,N43,P43,R43,T43:U43,W43),"No race run") -> 0.03622618429 | AB43: 4 | AC43: =IFERROR(IF(Z43>5,AVERAGE(SMALL((F43,H43,I43,K43:L43,N43,P43,R43,T43:U43,W43),{1,2,3,4,5})),AA43),"No race run") -> 0.03622618429
B44: Grieve | C44: Wendy | D44: F | E44: 0.08144675926 | F44: =(E44*86400)*POWER((6.2138818/13.1094),1.07)/86400 -> 0.03664026394 | G44: 0.06034722222 | H44: =(G44*86400)*POWER((6.2138818/10),1.07)/86400 -> 0.03627067863 | Z44: =COUNT(F44,H44,I44,K44:L44,N44,P44,R44,T44:U44,W44) -> 2 | AA44: =IFERROR(AVERAGE(F44,H44,I44,K44:L44,N44,P44,R44,T44:U44,W44),"No race run") -> 0.03645547129 | AB44: 2 | AC44: =IFERROR(IF(Z44>5,AVERAGE(SMALL((F44,H44,I44,K44:L44,N44,P44,R44,T44:U44,W44),{1,2,3,4,5})),AA44),"No race run") -> 0.03645547129
B45: Beveridge | C45: Lynn | D45: F | E45: 0.08319444444 | F45: =(E45*86400)*POWER((6.2138818/13.1094),1.07)/86400 -> 0.037426491 | I45: 0.03599537037 | J45: 0.0172337963 | K45: =(J45*86400)*POWER((10/5),1.07)/86400 -> 0.03618120699 | L45: 0.03780092593 | M45: 0.02793981481 | N45: =(M45*86400)*POWER((6.2138818/5),1.07)/86400 -> 0.03525526762 | Z45: =COUNT(F45,H45,I45,K45:L45,N45,P45,R45,T45:U45,W45) -> 5 | AA45: =IFERROR(AVERAGE(F45,H45,I45,K45:L45,N45,P45,R45,T45:U45,W45),"No race run") -> 0.03653185238 | AB45: 5 | AC45: =IFERROR(IF(Z45>5,AVERAGE(SMALL((F45,H45,I45,K45:L45,N45,P45,R45,T45:U45,W45),{1,2,3,4,5})),AA45),"No race run") -> 0.03653185238
B46: Jackson | C46: Andrea | D46: F | I46: 0.03672453704 | Z46: =COUNT(F46,H46,I46,K46:L46,N46,P46,R46,T46:U46,W46) -> 1 | AA46: =IFERROR(AVERAGE(F46,H46,I46,K46:L46,N46,P46,R46,T46:U46,W46),"No race run") -> 0.03672453704 | AB46: 1 | AC46: =IFERROR(IF(Z46>5,AVERAGE(SMALL((F46,H46,I46,K46:L46,N46,P46,R46,T46:U46,W46),{1,2,3,4,5})),AA46),"No race run") -> 0.03672453704
B47: Verdot | C47: Leigh | D47: F | E47: 0.08175925926 | F47: =(E47*86400)*POWER((6.2138818/13.1094),1.07)/86400 -> 0.03678084759 | G47: 0.06010416667 | H47: =(G47*86400)*POWER((6.2138818/10),1.07)/86400 -> 0.03612459419 | I47: 0.03563657407 | L47: 0.03842592593 | Z47: =COUNT(F47,H47,I47,K47:L47,N47,P47,R47,T47:U47,W47) -> 4 | AA47: =IFERROR(AVERAGE(F47,H47,I47,K47:L47,N47,P47,R47,T47:U47,W47),"No race run") -> 0.03674198545 | AB47: 4 | AC47: =IFERROR(IF(Z47>5,AVERAGE(SMALL((F47,H47,I47,K47:L47,N47,P47,R47,T47:U47,W47),{1,2,3,4,5})),AA47),"No race run") -> 0.03674198545
B48: Blyth | C48: Scott | D48: M | L48: 0.03700231481 | Z48: =COUNT(F48,H48,I48,K48:L48,N48,P48,R48,T48:U48,W48) -> 1 | AA48: =IFERROR(AVERAGE(F48,H48,I48,K48:L48,N48,P48,R48,T48:U48,W48),"No race run") -> 0.03700231481 | AB48: 1 | AC48: =IFERROR(IF(Z48>5,AVERAGE(SMALL((F48,H48,I48,K48:L48,N48,P48,R48,T48:U48,W48),{1,2,3,4,5})),AA48),"No race run") -> 0.03700231481
B49: Lopez | C49: Gill | D49: F | I49: 0.03538194444 | M49: 0.03107638889 | N49: =(M49*86400)*POWER((6.2138818/5),1.07)/86400 -> 0.03921308763 | Z49: =COUNT(F49,H49,I49,K49:L49,N49,P49,R49,T49:U49,W49) -> 2 | AA49: =IFERROR(AVERAGE(F49,H49,I49,K49:L49,N49,P49,R49,T49:U49,W49),"No race run") -> 0.03729751604 | AB49: 2 | AC49: =IFERROR(IF(Z49>5,AVERAGE(SMALL((F49,H49,I49,K49:L49,N49,P49,R49,T49:U49,W49),{1,2,3,4,5})),AA49),"No race run") -> 0.03729751604
B50: Malcolm | C50: Ann | D50: F | G50: 0.06267361111 | H50: =(G50*86400)*POWER((6.2138818/10),1.07)/86400 -> 0.03766891538 | I50: 0.03770833333 | Z50: =COUNT(F50,H50,I50,K50:L50,N50,P50,R50,T50:U50,W50) -> 2 | AA50: =IFERROR(AVERAGE(F50,H50,I50,K50:L50,N50,P50,R50,T50:U50,W50),"No race run") -> 0.03768862436 | AB50: 2 | AC50: =IFERROR(IF(Z50>5,AVERAGE(SMALL((F50,H50,I50,K50:L50,N50,P50,R50,T50:U50,W50),{1,2,3,4,5})),AA50),"No race run") -> 0.03768862436
B51: Kemp | C51: Gillian | D51: F | L51: 0.03770833333 | Z51: =COUNT(F51,H51,I51,K51:L51,N51,P51,R51,T51:U51,W51) -> 1 | AA51: =IFERROR(AVERAGE(F51,H51,I51,K51:L51,N51,P51,R51,T51:U51,W51),"No race run") -> 0.03770833333 | AB51: 1 | AC51: =IFERROR(IF(Z51>5,AVERAGE(SMALL((F51,H51,I51,K51:L51,N51,P51,R51,T51:U51,W51),{1,2,3,4,5})),AA51),"No race run") -> 0.03770833333
B52: Cuthbert | C52: Catriona | D52: F | E52: 0.08509259259 | F52: =(E52*86400)*POWER((6.2138818/13.1094),1.07)/86400 -> 0.03828040649 | Z52: =COUNT(F52,H52,I52,K52:L52,N52,P52,R52,T52:U52,W52) -> 1 | AA52: =IFERROR(AVERAGE(F52,H52,I52,K52:L52,N52,P52,R52,T52:U52,W52),"No race run") -> 0.03828040649 | AB52: 1 | AC52: =IFERROR(IF(Z52>5,AVERAGE(SMALL((F52,H52,I52,K52:L52,N52,P52,R52,T52:U52,W52),{1,2,3,4,5})),AA52),"No race run") -> 0.03828040649
B53: Smith | C53: Alison | D53: F | E53: 0.0866087963 | F53: =(E53*86400)*POWER((6.2138818/13.1094),1.07)/86400 -> 0.03896249752 | G53: 0.06322916667 | H53: =(G53*86400)*POWER((6.2138818/10),1.07)/86400 -> 0.03800282266 | I53: 0.03855324074 | J53: 0.01836805556 | K53: =(J53*86400)*POWER((10/5),1.07)/86400 -> 0.03856250872 | L53: 0.0381712963 | Z53: =COUNT(F53,H53,I53,K53:L53,N53,P53,R53,T53:U53,W53) -> 5 | AA53: =IFERROR(AVERAGE(F53,H53,I53,K53:L53,N53,P53,R53,T53:U53,W53),"No race run") -> 0.03845047319 | AB53: 5 | AC53: =IFERROR(IF(Z53>5,AVERAGE(SMALL((F53,H53,I53,K53:L53,N53,P53,R53,T53:U53,W53),{1,2,3,4,5})),AA53),"No race run") -> 0.03845047319
B54: Mackay | C54: Duncan | D54: M | E54: 0.08854166667 | F54: =(E54*86400)*POWER((6.2138818/13.1094),1.07)/86400 -> 0.03983203341 | G54: 0.06230324074 | H54: =(G54*86400)*POWER((6.2138818/10),1.07)/86400 -> 0.03744631052 | Z54: =COUNT(F54,H54,I54,K54:L54,N54,P54,R54,T54:U54,W54) -> 2 | AA54: =IFERROR(AVERAGE(F54,H54,I54,K54:L54,N54,P54,R54,T54:U54,W54),"No race run") -> 0.03863917197 | AB54: 2 | AC54: =IFERROR(IF(Z54>5,AVERAGE(SMALL((F54,H54,I54,K54:L54,N54,P54,R54,T54:U54,W54),{1,2,3,4,5})),AA54),"No race run") -> 0.03863917197
B55: McLean | C55: Susan | D55: F | J55: 0.01835648148 | K55: =(J55*86400)*POWER((10/5),1.07)/86400 -> 0.03853820973 | M55: 0.03097222222 | N55: =(M55*86400)*POWER((6.2138818/5),1.07)/86400 -> 0.03908164712 | Z55: =COUNT(F55,H55,I55,K55:L55,N55,P55,R55,T55:U55,W55) -> 2 | AA55: =IFERROR(AVERAGE(F55,H55,I55,K55:L55,N55,P55,R55,T55:U55,W55),"No race run") -> 0.03880992842 | AB55: 2 | AC55: =IFERROR(IF(Z55>5,AVERAGE(SMALL((F55,H55,I55,K55:L55,N55,P55,R55,T55:U55,W55),{1,2,3,4,5})),AA55),"No race run") -> 0.03880992842
B56: Aird | C56: Andrew | D56: M | G56: 0.06872685185 | H56: =(G56*86400)*POWER((6.2138818/10),1.07)/86400 -> 0.04130711348 | I56: 0.04032407407 | J56: 0.01804398148 | K56: =(J56*86400)*POWER((10/5),1.07)/86400 -> 0.0378821368 | M56: 0.02856481481 | N56: =(M56*86400)*POWER((6.2138818/5),1.07)/86400 -> 0.03604391072 | Z56: =COUNT(F56,H56,I56,K56:L56,N56,P56,R56,T56:U56,W56) -> 4 | AA56: =IFERROR(AVERAGE(F56,H56,I56,K56:L56,N56,P56,R56,T56:U56,W56),"No race run") -> 0.03888930877 | AB56: 4 | AC56: =IFERROR(IF(Z56>5,AVERAGE(SMALL((F56,H56,I56,K56:L56,N56,P56,R56,T56:U56,W56),{1,2,3,4,5})),AA56),"No race run") -> 0.03888930877
B57: Houston | C57: Alison | D57: F | G57: 0.06508101852 | H57: =(G57*86400)*POWER((6.2138818/10),1.07)/86400 -> 0.03911584694 | L57: 0.03923611111 | M57: 0.03063657407 | N57: =(M57*86400)*POWER((6.2138818/5),1.07)/86400 -> 0.03865811656 | Z57: =COUNT(F57,H57,I57,K57:L57,N57,P57,R57,T57:U57,W57) -> 3 | AA57: =IFERROR(AVERAGE(F57,H57,I57,K57:L57,N57,P57,R57,T57:U57,W57),"No race run") -> 0.0390033582 | AB57: 3 | AC57: =IFERROR(IF(Z57>5,AVERAGE(SMALL((F57,H57,I57,K57:L57,N57,P57,R57,T57:U57,W57),{1,2,3,4,5})),AA57),"No race run") -> 0.0390033582
B58: Mitchell | C58: Karen | D58: F | G58: 0.06702546296 | H58: =(G58*86400)*POWER((6.2138818/10),1.07)/86400 -> 0.04028452243 | I58: 0.03789351852 | Z58: =COUNT(F58,H58,I58,K58:L58,N58,P58,R58,T58:U58,W58) -> 2 | AA58: =IFERROR(AVERAGE(F58,H58,I58,K58:L58,N58,P58,R58,T58:U58,W58),"No race run") -> 0.03908902047 | AB58: 2 | AC58: =IFERROR(IF(Z58>5,AVERAGE(SMALL((F58,H58,I58,K58:L58,N58,P58,R58,T58:U58,W58),{1,2,3,4,5})),AA58),"No race run") -> 0.03908902047
B59: Lopez | C59: Hannah | D59: F | M59: 0.03107638889 | N59: =(M59*86400)*POWER((6.2138818/5),1.07)/86400 -> 0.03921308763 | Z59: =COUNT(F59,H59,I59,K59:L59,N59,P59,R59,T59:U59,W59) -> 1 | AA59: =IFERROR(AVERAGE(F59,H59,I59,K59:L59,N59,P59,R59,T59:U59,W59),"No race run") -> 0.03921308763 | AB59: 1 | AC59: =IFERROR(IF(Z59>5,AVERAGE(SMALL((F59,H59,I59,K59:L59,N59,P59,R59,T59:U59,W59),{1,2,3,4,5})),AA59),"No race run") -> 0.03921308763
B60: Smith | C60: Natalie | D60: F | I60: 0.03929398148 | Z60: =COUNT(F60,H60,I60,K60:L60,N60,P60,R60,T60:U60,W60) -> 1 | AA60: =IFERROR(AVERAGE(F60,H60,I60,K60:L60,N60,P60,R60,T60:U60,W60),"No race run") -> 0.03929398148 | AB60: 1 | AC60: =IFERROR(IF(Z60>5,AVERAGE(SMALL((F60,H60,I60,K60:L60,N60,P60,R60,T60:U60,W60),{1,2,3,4,5})),AA60),"No race run") -> 0.03929398148
B61: Macintyre | C61: Anne | D61: F | G61: 0.06701388889 | H61: =(G61*86400)*POWER((6.2138818/10),1.07)/86400 -> 0.04027756603 | I61: 0.0390625 | L61: 0.03956018519 | Z61: =COUNT(F61,H61,I61,K61:L61,N61,P61,R61,T61:U61,W61) -> 3 | AA61: =IFERROR(AVERAGE(F61,H61,I61,K61:L61,N61,P61,R61,T61:U61,W61),"No race run") -> 0.03963341707 | AB61: 3 | AC61: =IFERROR(IF(Z61>5,AVERAGE(SMALL((F61,H61,I61,K61:L61,N61,P61,R61,T61:U61,W61),{1,2,3,4,5})),AA61),"No race run") -> 0.03963341707
B62: Robertson | C62: Alison | D62: F | I62: 0.04046296296 | Z62: =COUNT(F62,H62,I62,K62:L62,N62,P62,R62,T62:U62,W62) -> 1 | AA62: =IFERROR(AVERAGE(F62,H62,I62,K62:L62,N62,P62,R62,T62:U62,W62),"No race run") -> 0.04046296296 | AB62: 1 | AC62: =IFERROR(IF(Z62>5,AVERAGE(SMALL((F62,H62,I62,K62:L62,N62,P62,R62,T62:U62,W62),{1,2,3,4,5})),AA62),"No race run") -> 0.04046296296
B63: Mackay | C63: Lindsey | D63: F | E63: 0.0922337963 | F63: =(E63*86400)*POWER((6.2138818/13.1094),1.07)/86400 -> 0.04149300317 | G63: 0.06653935185 | H63: =(G63*86400)*POWER((6.2138818/10),1.07)/86400 -> 0.03999235356 | Z63: =COUNT(F63,H63,I63,K63:L63,N63,P63,R63,T63:U63,W63) -> 2 | AA63: =IFERROR(AVERAGE(F63,H63,I63,K63:L63,N63,P63,R63,T63:U63,W63),"No race run") -> 0.04074267837 | AB63: 2 | AC63: =IFERROR(IF(Z63>5,AVERAGE(SMALL((F63,H63,I63,K63:L63,N63,P63,R63,T63:U63,W63),{1,2,3,4,5})),AA63),"No race run") -> 0.04074267837
B64: Woodrow | C64: Andrew | D64: M | E64: 0.08826388889 | F64: =(E64*86400)*POWER((6.2138818/13.1094),1.07)/86400 -> 0.03970707017 | G64: 0.07126157407 | H64: =(G64*86400)*POWER((6.2138818/10),1.07)/86400 -> 0.04283056546 | J64: 0.02050925926 | K64: =(J64*86400)*POWER((10/5),1.07)/86400 -> 0.04305782323 | L64: 0.04456018519 | Z64: =COUNT(F64,H64,I64,K64:L64,N64,P64,R64,T64:U64,W64) -> 4 | AA64: =IFERROR(AVERAGE(F64,H64,I64,K64:L64,N64,P64,R64,T64:U64,W64),"No race run") -> 0.04253891101 | AB64: =IF(COUNT(F64,H64,I64,K64:L64,N64,P64,R64,T64:U64,W64)>5,5,COUNT(F64,H64,I64,K64:L64,N64,P64,R64,T64:U64,W64)) -> 4 | AC64: =IFERROR(IF(Z64>5,AVERAGE(SMALL((F64,H64,I64,K64:L64,N64,P64,R64,T64:U64,W64),{1,2,3,4,5})),AA64),"No race run") -> 0.04253891101
B65: Donnachie | C65: Gordon | D65: M | E65: 0.1095601852 | F65: =(E65*86400)*POWER((6.2138818/13.1094),1.07)/86400 -> 0.0492875854 | I65: 0.03821759259 | Z65: =COUNT(F65,H65,I65,K65:L65,N65,P65,R65,T65:U65,W65) -> 2 | AA65: =IFERROR(AVERAGE(F65,H65,I65,K65:L65,N65,P65,R65,T65:U65,W65),"No race run") -> 0.043752589 | AB65: =IF(COUNT(F65,H65,I65,K65:L65,N65,P65,R65,T65:U65,W65)>5,5,COUNT(F65,H65,I65,K65:L65,N65,P65,R65,T65:U65,W65)) -> 2 | AC65: =IFERROR(IF(Z65>5,AVERAGE(SMALL((F65,H65,I65,K65:L65,N65,P65,R65,T65:U65,W65),{1,2,3,4,5})),AA65),"No race run") -> 0.043752589
B66: Eaton | C66: Sarah | D66: F | E66: 0.1010069444 | F66: =(E66*86400)*POWER((6.2138818/13.1094),1.07)/86400 -> 0.0454397589 | G66: 0.07922453704 | H66: =(G66*86400)*POWER((6.2138818/10),1.07)/86400 -> 0.04761656986 | J66: 0.02083333333 | K66: =(J66*86400)*POWER((10/5),1.07)/86400 -> 0.04373819515 | M66: 0.03291666667 | N66: =(M66*86400)*POWER((6.2138818/5),1.07)/86400 -> 0.04153520344 | Z66: =COUNT(F66,H66,I66,K66:L66,N66,P66,R66,T66:U66,W66) -> 4 | AA66: =IFERROR(AVERAGE(F66,H66,I66,K66:L66,N66,P66,R66,T66:U66,W66),"No race run") -> 0.04458243184 | AB66: =IF(COUNT(F66,H66,I66,K66:L66,N66,P66,R66,T66:U66,W66)>5,5,COUNT(F66,H66,I66,K66:L66,N66,P66,R66,T66:U66,W66)) -> 4 | AC66: =IFERROR(IF(Z66>5,AVERAGE(SMALL((F66,H66,I66,K66:L66,N66,P66,R66,T66:U66,W66),{1,2,3,4,5})),AA66),"No race run") -> 0.04458243184
B67: Stark | C67: Roger | D67: M | J67: 0.021875 | K67: =(J67*86400)*POWER((10/5),1.07)/86400 -> 0.04592510491 | L67: 0.04722222222 | M67: 0.03538194444 | N67: =(M67*86400)*POWER((6.2138818/5),1.07)/86400 -> 0.04464596235 | Z67: =COUNT(F67,H67,I67,K67:L67,N67,P67,R67,T67:U67,W67) -> 3 | AA67: =IFERROR(AVERAGE(F67,H67,I67,K67:L67,N67,P67,R67,T67:U67,W67),"No race run") -> 0.04593109649 | AB67: 3 | AC67: =IFERROR(IF(Z67>5,AVERAGE(SMALL((F67,H67,I67,K67:L67,N67,P67,R67,T67:U67,W67),{1,2,3,4,5})),AA67),"No race run") -> 0.04593109649
B68: MacCalman | C68: Sandy | D68: M | I68: 0.05025462963 | J68: 0.02195601852 | K68: =(J68*86400)*POWER((10/5),1.07)/86400 -> 0.04609519789 | M68: 0.03961805556 | N68: =(M68*86400)*POWER((6.2138818/5),1.07)/86400 -> 0.04999121005 | Z68: =COUNT(F68,H68,I68,K68:L68,N68,P68,R68,T68:U68,W68) -> 3 | AA68: =IFERROR(AVERAGE(F68,H68,I68,K68:L68,N68,P68,R68,T68:U68,W68),"No race run") -> 0.04878034585 | AB68: 3 | AC68: =IFERROR(IF(Z68>5,AVERAGE(SMALL((F68,H68,I68,K68:L68,N68,P68,R68,T68:U68,W68),{1,2,3,4,5})),AA68),"No race run") -> 0.04878034585
B69: Nouillan | C69: Bill | D69: M | E69: 0.1103935185 | F69: =(E69*86400)*POWER((6.2138818/13.1094),1.07)/86400 -> 0.04966247513 | G69: 0.08388888889 | H69: =(G69*86400)*POWER((6.2138818/10),1.07)/86400 -> 0.05041999975 | J69: 0.02344907407 | K69: =(J69*86400)*POWER((10/5),1.07)/86400 -> 0.04922976854 | L69: 0.04903935185 | M69: 0.0396875 | N69: =(M69*86400)*POWER((6.2138818/5),1.07)/86400 -> 0.05007883706 | Z69: =COUNT(F69,H69,I69,K69:L69,N69,P69,R69,T69:U69,W69) -> 5 | AA69: =IFERROR(AVERAGE(F69,H69,I69,K69:L69,N69,P69,R69,T69:U69,W69),"No race run") -> 0.04968608647 | AB69: 5 | AC69: =IFERROR(IF(Z69>5,AVERAGE(SMALL((F69,H69,I69,K69:L69,N69,P69,R69,T69:U69,W69),{1,2,3,4,5})),AA69),"No race run") -> 0.04968608647
B70: Laycock | C70: Andy | D70: M | Z70: =COUNT(F70,H70,I70,K70:L70,N70,P70,R70,T70:U70,W70) -> 0 | AA70: =IFERROR(AVERAGE(F70,H70,I70,K70:L70,N70,P70,R70,T70:U70,W70),"No race run") -> No race run | AB70: 0 | AC70: =IFERROR(IF(Z70>5,AVERAGE(SMALL((F70,H70,I70,K70:L70,N70,P70,R70,T70:U70,W70),{1,2,3,4,5})),AA70),"No race run") -> No race run
B71: Boyle | C71: Mhairi | D71: F | Z71: =COUNT(F71,H71,I71,K71:L71,N71,P71,R71,T71:U71,W71) -> 0 | AA71: =IFERROR(AVERAGE(F71,H71,I71,K71:L71,N71,P71,R71,T71:U71,W71),"No race run") -> No race run | AB71: 0 | AC71: =IFERROR(IF(Z71>5,AVERAGE(SMALL((F71,H71,I71,K71:L71,N71,P71,R71,T71:U71,W71),{1,2,3,4,5})),AA71),"No race run") -> No race run
B72: Porter | C72: Hazel | D72: F | Z72: =COUNT(F72,H72,I72,K72:L72,N72,P72,R72,T72:U72,W72) -> 0 | AA72: =IFERROR(AVERAGE(F72,H72,I72,K72:L72,N72,P72,R72,T72:U72,W72),"No race run") -> No race run | AB72: 0 | AC72: =IFERROR(IF(Z72>5,AVERAGE(SMALL((F72,H72,I72,K72:L72,N72,P72,R72,T72:U72,W72),{1,2,3,4,5})),AA72),"No race run") -> No race run
B73: Sinclair | C73: Ally | D73: M | Z73: =COUNT(F73,H73,I73,K73:L73,N73,P73,R73,T73:U73,W73) -> 0 | AA73: =IFERROR(AVERAGE(F73,H73,I73,K73:L73,N73,P73,R73,T73:U73,W73),"No race run") -> No race run | AB73: 0 | AC73: =IFERROR(IF(Z73>5,AVERAGE(SMALL((F73,H73,I73,K73:L73,N73,P73,R73,T73:U73,W73),{1,2,3,4,5})),AA73),"No race run") -> No race run
B74: Baughan | C74: Nick | D74: M | Z74: =COUNT(F74,H74,I74,K74:L74,N74,P74,R74,T74:U74,W74) -> 0 | AA74: =IFERROR(AVERAGE(F74,H74,I74,K74:L74,N74,P74,R74,T74:U74,W74),"No race run") -> No race run | AB74: 0 | AC74: =IFERROR(IF(Z74>5,AVERAGE(SMALL((F74,H74,I74,K74:L74,N74,P74,R74,T74:U74,W74),{1,2,3,4,5})),AA74),"No race run") -> No race run
B75: Truesdale | C75: Iain | D75: M | Z75: =COUNT(F75,H75,I75,K75:L75,N75,P75,R75,T75:U75,W75) -> 0 | AA75: =IFERROR(AVERAGE(F75,H75,I75,K75:L75,N75,P75,R75,T75:U75,W75),"No race run") -> No race run | AB75: 0 | AC75: =IFERROR(IF(Z75>5,AVERAGE(SMALL((F75,H75,I75,K75:L75,N75,P75,R75,T75:U75,W75),{1,2,3,4,5})),AA75),"No race run") -> No race run
B76: Boyle | C76: John | D76: M | Z76: =COUNT(F76,H76,I76,K76:L76,N76,P76,R76,T76:U76,W76) -> 0 | AA76: =IFERROR(AVERAGE(F76,H76,I76,K76:L76,N76,P76,R76,T76:U76,W76),"No race run") -> No race run | AB76: 0 | AC76: =IFERROR(IF(Z76>5,AVERAGE(SMALL((F76,H76,I76,K76:L76,N76,P76,R76,T76:U76,W76),{1,2,3,4,5})),AA76),"No race run") -> No race run
B77: Hookham | C77: Peter | D77: M | Z77: =COUNT(F77,H77,I77,K77:L77,N77,P77,R77,T77:U77,W77) -> 0 | AA77: =IFERROR(AVERAGE(F77,H77,I77,K77:L77,N77,P77,R77,T77:U77,W77),"No race run") -> No race run | AB77: 0 | AC77: =IFERROR(IF(Z77>5,AVERAGE(SMALL((F77,H77,I77,K77:L77,N77,P77,R77,T77:U77,W77),{1,2,3,4,5})),AA77),"No race run") -> No race run
B78: Palmer | C78: Linda | D78: F | Z78: =COUNT(F78,H78,I78,K78:L78,N78,P78,R78,T78:U78,W78) -> 0 | AA78: =IFERROR(AVERAGE(F78,H78,I78,K78:L78,N78,P78,R78,T78:U78,W78),"No race run") -> No race run | AB78: 0 | AC78: =IFERROR(IF(Z78>5,AVERAGE(SMALL((F78,H78,I78,K78:L78,N78,P78,R78,T78:U78,W78),{1,2,3,4,5})),AA78),"No race run") -> No race run
B79: Tweddle | C79: Scott | D79: M | Z79: =COUNT(F79,H79,I79,K79:L79,N79,P79,R79,T79:U79,W79) -> 0 | AA79: =IFERROR(AVERAGE(F79,H79,I79,K79:L79,N79,P79,R79,T79:U79,W79),"No race run") -> No race run | AB79: 0 | AC79: =IFERROR(IF(Z79>5,AVERAGE(SMALL((F79,H79,I79,K79:L79,N79,P79,R79,T79:U79,W79),{1,2,3,4,5})),AA79),"No race run") -> No race run
B80: Hunter | C80: Finlay | D80: M | Z80: =COUNT(F80,H80,I80,K80:L80,N80,P80,R80,T80:U80,W80) -> 0 | AA80: =IFERROR(AVERAGE(F80,H80,I80,K80:L80,N80,P80,R80,T80:U80,W80),"No race run") -> No race run | AB80: 0 | AC80: =IFERROR(IF(Z80>5,AVERAGE(SMALL((F80,H80,I80,K80:L80,N80,P80,R80,T80:U80,W80),{1,2,3,4,5})),AA80),"No race run") -> No race run
B81: Aitken | C81: Kerry | D81: F | Z81: =COUNT(F81,H81,I81,K81:L81,N81,P81,R81,T81:U81,W81) -> 0 | AA81: =IFERROR(AVERAGE(F81,H81,I81,K81:L81,N81,P81,R81,T81:U81,W81),"No race run") -> No race run | AB81: 0 | AC81: =IFERROR(IF(Z81>5,AVERAGE(SMALL((F81,H81,I81,K81:L81,N81,P81,R81,T81:U81,W81),{1,2,3,4,5})),AA81),"No race run") -> No race run
B82: Kemp | C82: Fiona | D82: F | Z82: =COUNT(F82,H82,I82,K82:L82,N82,P82,R82,T82:U82,W82) -> 0 | AA82: =IFERROR(AVERAGE(F82,H82,I82,K82:L82,N82,P82,R82,T82:U82,W82),"No race run") -> No race run | AB82: 0 | AC82: =IFERROR(IF(Z82>5,AVERAGE(SMALL((F82,H82,I82,K82:L82,N82,P82,R82,T82:U82,W82),{1,2,3,4,5})),AA82),"No race run") -> No race run
B83: McCulloch | C83: Angus | D83: M | Z83: =COUNT(F83,H83,I83,K83:L83,N83,P83,R83,T83:U83,W83) -> 0 | AA83: =IFERROR(AVERAGE(F83,H83,I83,K83:L83,N83,P83,R83,T83:U83,W83),"No race run") -> No race run | AB83: 0 | AC83: =IFERROR(IF(Z83>5,AVERAGE(SMALL((F83,H83,I83,K83:L83,N83,P83,R83,T83:U83,W83),{1,2,3,4,5})),AA83),"No race run") -> No race run
B84: Cuthbert | C84: Keith | D84: M | Z84: =COUNT(F84,H84,I84,K84:L84,N84,P84,R84,T84:U84,W84) -> 0 | AA84: =IFERROR(AVERAGE(F84,H84,I84,K84:L84,N84,P84,R84,T84:U84,W84),"No race run") -> No race run | AB84: 0 | AC84: =IFERROR(IF(Z84>5,AVERAGE(SMALL((F84,H84,I84,K84:L84,N84,P84,R84,T84:U84,W84),{1,2,3,4,5})),AA84),"No race run") -> No race run
B85: Parsons | C85: Vicky | D85: F | Z85: =COUNT(F85,H85,I85,K85:L85,N85,P85,R85,T85:U85,W85) -> 0 | AA85: =IFERROR(AVERAGE(F85,H85,I85,K85:L85,N85,P85,R85,T85:U85,W85),"No race run") -> No race run | AB85: 0 | AC85: =IFERROR(IF(Z85>5,AVERAGE(SMALL((F85,H85,I85,K85:L85,N85,P85,R85,T85:U85,W85),{1,2,3,4,5})),AA85),"No race run") -> No race run
B86: Rennie | C86: Amanda | D86: F | Z86: =COUNT(F86,H86,I86,K86:L86,N86,P86,R86,T86:U86,W86) -> 0 | AA86: =IFERROR(AVERAGE(F86,H86,I86,K86:L86,N86,P86,R86,T86:U86,W86),"No race run") -> No race run | AB86: 0 | AC86: =IFERROR(IF(Z86>5,AVERAGE(SMALL((F86,H86,I86,K86:L86,N86,P86,R86,T86:U86,W86),{1,2,3,4,5})),AA86),"No race run") -> No race run
B87: Cuthbert | C87: Catriona | D87: F | Z87: =COUNT(F87,H87,I87,K87:L87,N87,P87,R87,T87:U87,W87) -> 0 | AA87: =IFERROR(AVERAGE(F87,H87,I87,K87:L87,N87,P87,R87,T87:U87,W87),"No race run") -> No race run | AB87: 0 | AC87: =IFERROR(IF(Z87>5,AVERAGE(SMALL((F87,H87,I87,K87:L87,N87,P87,R87,T87:U87,W87),{1,2,3,4,5})),AA87),"No race run") -> No race run
B88: Robertson | C88: Neil | D88: M | Z88: =COUNT(F88,H88,I88,K88:L88,N88,P88,R88,T88:U88,W88) -> 0 | AA88: =IFERROR(AVERAGE(F88,H88,I88,K88:L88,N88,P88,R88,T88:U88,W88),"No race run") -> No race run | AB88: 0 | AC88: =IFERROR(IF(Z88>5,AVERAGE(SMALL((F88,H88,I88,K88:L88,N88,P88,R88,T88:U88,W88),{1,2,3,4,5})),AA88),"No race run") -> No race run
B89: Coutts | C89: Pippa | D89: F | Z89: =COUNT(F89,H89,I89,K89:L89,N89,P89,R89,T89:U89,W89) -> 0 | AA89: =IFERROR(AVERAGE(F89,H89,I89,K89:L89,N89,P89,R89,T89:U89,W89),"No race run") -> No race run | AB89: 0 | AC89: =IFERROR(IF(Z89>5,AVERAGE(SMALL((F89,H89,I89,K89:L89,N89,P89,R89,T89:U89,W89),{1,2,3,4,5})),AA89),"No race run") -> No race run
B90: Hunter | C90: Lynn | D90: F | Z90: =COUNT(F90,H90,I90,K90:L90,N90,P90,R90,T90:U90,W90) -> 0 | AA90: =IFERROR(AVERAGE(F90,H90,I90,K90:L90,N90,P90,R90,T90:U90,W90),"No race run") -> No race run | AB90: 0 | AC90: =IFERROR(IF(Z90>5,AVERAGE(SMALL((F90,H90,I90,K90:L90,N90,P90,R90,T90:U90,W90),{1,2,3,4,5})),AA90),"No race run") -> No race run
B91: Smith | C91: Norman | D91: M | Z91: =COUNT(F91,H91,I91,K91:L91,N91,P91,R91,T91:U91,W91) -> 0 | AA91: =IFERROR(AVERAGE(F91,H91,I91,K91:L91,N91,P91,R91,T91:U91,W91),"No race run") -> No race run | AB91: 0 | AC91: =IFERROR(IF(Z91>5,AVERAGE(SMALL((F91,H91,I91,K91:L91,N91,P91,R91,T91:U91,W91),{1,2,3,4,5})),AA91),"No race run") -> No race run
B92: Hill | C92: Lisa | D92: F | Z92: =COUNT(F92,H92,I92,K92:L92,N92,P92,R92,T92:U92,W92) -> 0 | AA92: =IFERROR(AVERAGE(F92,H92,I92,K92:L92,N92,P92,R92,T92:U92,W92),"No race run") -> No race run | AB92: 0 | AC92: =IFERROR(IF(Z92>5,AVERAGE(SMALL((F92,H92,I92,K92:L92,N92,P92,R92,T92:U92,W92),{1,2,3,4,5})),AA92),"No race run") -> No race run
B93: Logan | C93: Keith | D93: M | Z93: =COUNT(F93,H93,I93,K93:L93,N93,P93,R93,T93:U93,W93) -> 0 | AA93: =IFERROR(AVERAGE(F93,H93,I93,K93:L93,N93,P93,R93,T93:U93,W93),"No race run") -> No race run | AB93: 0 | AC93: =IFERROR(IF(Z93>5,AVERAGE(SMALL((F93,H93,I93,K93:L93,N93,P93,R93,T93:U93,W93),{1,2,3,4,5})),AA93),"No race run") -> No race run
